fUST/lending_fUST_20240227
["ID","MTS","AMOUNT","RATE_DAILY","PERIOD"]
[315278834,1708974641263,-500.0,0.00019726,2]
[315278835,1708974641272,-794.61,0.00019726,2]
[315278836,1708974641281,-500.0,0.00019726,2]
[315278837,1708974641294,-500.0,0.00019726,2]
[315278838,1708974641302,-500.0,0.00019726,2]
[315278839,1708974641311,-500.0,0.00019726,2]
[315278840,1708974641320,-356.05453121,0.00019726,2]
[315278841,1708974641329,-500.0,0.00019726,2]
[315278842,1708974641337,-1775.87,0.00019726,2]
[315278843,1708974641347,-452.30101348,0.00019726,2]
[315278844,1708974641357,-747.87,0.00019726,2]
[315278845,1708974641366,-559.01,0.00019726,2]
[315278846,1708974641375,-500.0,0.00019726,2]
[315278847,1708974641384,-840.97,0.00019726,2]
[315278848,1708974641394,-500.0,0.00019726,2]
[315278849,1708974641403,-500.0,0.00019726,2]
[315278850,1708974641412,-500.0,0.00019726,2]
[315278851,1708974641422,-1212.5,0.00019726,2]
[315278852,1708974641431,-1260.34,0.00019726,2]
[315278853,1708974641440,-2584.76,0.00019726,2]
[315278855,1708974641450,-500.0,0.00019726,2]
[315278857,1708974641459,-1040.02,0.00019726,2]
[315278858,1708974641468,-1514.46,0.00019726,2]
[315278859,1708974641477,-168.20415055,0.00019726,2]
[315278860,1708974641486,-500.0,0.00019726,2]
[315278861,1708974641496,-1519.51,0.00019726,2]
[315278863,1708974641505,-1231.68,0.00019726,2]
[315278864,1708974641514,-500.0,0.00019726,2]
[315278865,1708974641523,-736.08,0.00019726,2]
[315278866,1708974641532,-515.69,0.00019726,2]
[315278867,1708974641544,-1064.65,0.00019726,2]
[315278868,1708974641554,-566.39,0.00019726,2]
[315278869,1708974641563,-11546.08,0.00019726,2]
[315278870,1708974641573,-11291.86,0.00019726,2]
[315278871,1708974641582,-500.0,0.00019726,2]
[315278872,1708974641591,-848.65,0.00019726,2]
[315278873,1708974641601,-500.0,0.00019726,2]
[315278874,1708974641610,-932.88,0.00019726,2]
[315278875,1708974641619,-700.43,0.00019726,2]
[315278876,1708974641628,-569.71,0.00019726,2]
[315278877,1708974641638,-5726.06,0.00019726,2]
[315278878,1708974641647,-500.0,0.00019726,2]
[315278879,1708974641660,-4969.98,0.00019726,2]
[315278880,1708974641669,-500.0,0.00019726,2]
[315278881,1708974641679,-633.71,0.00019726,2]
[315278882,1708974641688,-500.0,0.00019726,2]
[315278883,1708974641697,-1013.29,0.00019726,2]
[315278884,1708974641707,-500.0,0.00019726,2]
[315278885,1708974641716,-2035.13,0.00019726,2]
[315278886,1708974641726,-1252.63,0.00019726,2]
[315278887,1708974641735,-500.0,0.00019726,2]
[315278888,1708974641745,-8230.24916882,0.0001989,2]
[315278889,1708974641754,-428.76125455,0.00019976,2]
[315278890,1708974641764,-502.50391033,0.00019998,2]
[315278891,1708974641774,-104303.12329218,0.00019999,2]
[315278892,1708974641783,-500.0,0.00019999,2]
[315278893,1708974641794,-319.09963093,0.00019999,2]
[315278894,1708974641803,-248.23,0.0002,7]
[315278895,1708974641813,-574.41,0.0002,2]
[315278896,1708974641823,-500.0,0.0002,2]
[315278897,1708974641833,-1739.24,0.0002,2]
[315278898,1708974641842,-500.0,0.0002,2]
[315278899,1708974641852,-500.0,0.0002,2]
[315278900,1708974641861,-179.60062672,0.0002,2]
[315278901,1708974641871,-500.0,0.0002,2]
[315278902,1708974641880,-644.14,0.0002,2]
[315278903,1708974641889,-500.0,0.0002,2]
[315278904,1708974641898,-794.61,0.0002,2]
[315278905,1708974641908,-500.0,0.0002,2]
[315278906,1708974641919,-500.0,0.0002,2]
[315278907,1708974641928,-500.0,0.0002,2]
[315278908,1708974641937,-500.0,0.0002,2]
[315278909,1708974641946,-500.0,0.0002,2]
[315278910,1708974641956,-1775.87,0.0002,2]
[315278911,1708974641965,-747.87,0.0002,2]
[315278912,1708974641975,-500.0,0.0002,2]
[315278913,1708974641984,-840.97,0.0002,2]
[315278914,1708974641993,-500.0,0.0002,2]
[315278915,1708974642003,-1212.5,0.0002,2]
[315278916,1708974642013,-1260.34,0.0002,2]
[315278917,1708974642023,-2584.76,0.0002,2]
[315278918,1708974642032,-1040.02,0.0002,2]
[315278919,1708974642044,-1514.46,0.0002,2]
[315278920,1708974642053,-500.0,0.0002,2]
[315278921,1708974642062,-1519.51,0.0002,2]
[315278922,1708974642071,-1231.68,0.0002,2]
[315278923,1708974642079,-500.0,0.0002,2]
[315278924,1708974642088,-736.08,0.0002,2]
[315278925,1708974642098,-515.69,0.0002,2]
[315278926,1708974642107,-1064.65,0.0002,2]
[315278927,1708974642116,-566.39,0.0002,2]
[315278928,1708974642126,-11546.08,0.0002,2]
[315278929,1708974642135,-11291.86,0.0002,2]
[315278930,1708974642144,-609.4828341,0.0002,2]
[315278931,1708974642153,-848.65,0.0002,2]
[315278932,1708974642162,-932.88,0.0002,2]
[315278933,1708974642172,-700.43,0.0002,2]
[315278934,1708974642181,-569.71,0.0002,2]
[315278935,1708974642190,-5726.06,0.0002,2]
[315278936,1708974642199,-500.0,0.0002,2]
[315278937,1708974642208,-4969.98,0.0002,2]
[315278938,1708974642218,-500.0,0.0002,2]
[315278939,1708974642227,-633.71,0.0002,2]
[315278940,1708974642237,-1013.29,0.0002,2]
[315278941,1708974642246,-311.85052786,0.0002,2]
[315278942,1708974642255,-2035.13,0.0002,2]
[315278943,1708974642265,-1252.63,0.0002,2]
[315278944,1708974642274,-166.666666,0.00020076,2]
[315278945,1708974642284,-399.333294,0.00020264,2]
[315278946,1708974642296,-243.58118859,0.00020264,2]
[315278948,1708974642394,-399.333294,0.00020264,2]
[315278949,1708974642403,-243.58118859,0.00020264,2]
[315278950,1708974642412,-5000.0,0.00020265,2]
[315278951,1708974642422,-34847.61884765,0.00020265,2]
[315278952,1708974642431,-5000.0,0.00020265,2]
[315278953,1708974642440,-88481.46847834,0.00020265,2]
[315278954,1708974642448,-5000.0,0.0002027,2]
[315278955,1708974642458,-48231.15602602,0.00020271,2]
[315278956,1708974642467,-500.0,0.00020273,2]
[315278957,1708974642477,-1739.24,0.00020273,2]
[315278959,1708974642488,-500.0,0.00020273,2]
[315278961,1708974642497,-500.0,0.00020273,2]
[315278964,1708974642506,-644.14,0.00020273,2]
[315278965,1708974642516,-350.16228113,0.00020273,2]
[315278966,1708974642525,-794.61,0.00020273,2]
[315278967,1708974642535,-500.0,0.00020273,2]
[315278968,1708974642547,-500.0,0.00020273,2]
[315278969,1708974642557,-500.0,0.00020273,2]
[315278970,1708974642567,-500.0,0.00020273,2]
[315278971,1708974642576,-500.0,0.00020273,2]
[315278972,1708974642585,-1775.87,0.00020273,2]
[315278973,1708974642595,-747.87,0.00020273,2]
[315278975,1708974642604,-840.97,0.00020273,2]
[315278977,1708974642613,-1212.5,0.00020273,2]
[315278978,1708974642622,-1260.34,0.00020273,2]
[315278979,1708974642631,-2584.76,0.00020273,2]
[315278980,1708974642640,-1040.02,0.00020273,2]
[315278981,1708974642649,-1514.46,0.00020273,2]
[315278982,1708974642659,-500.0,0.00020273,2]
[315278984,1708974642668,-1519.51,0.00020273,2]
[315278985,1708974642680,-1231.68,0.00020273,2]
[315278986,1708974642689,-500.0,0.00020273,2]
[315278987,1708974642698,-736.08,0.00020273,2]
[315278988,1708974642707,-515.69,0.00020273,2]
[315278989,1708974642717,-1064.65,0.00020273,2]
[315278991,1708974642726,-566.39,0.00020273,2]
[315278992,1708974642735,-11546.08,0.00020273,2]
[315278994,1708974642746,-11291.86,0.00020273,2]
[315278996,1708974642757,-848.65,0.00020273,2]
[315278998,1708974642766,-932.88,0.00020273,2]
[315279000,1708974642775,-700.43,0.00020273,2]
[315279001,1708974642784,-569.71,0.00020273,2]
[315279002,1708974642796,-5726.06,0.00020273,2]
[315279004,1708974642805,-500.0,0.00020273,2]
[315279006,1708974642814,-4969.98,0.00020273,2]
[315279008,1708974642822,-500.0,0.00020273,2]
[315279010,1708974642832,-633.71,0.00020273,2]
[315279011,1708974642841,-1013.29,0.00020273,2]
[315279012,1708974642850,-2035.13,0.00020273,2]
[315279014,1708974642859,-1252.63,0.00020273,2]
[315279016,1708974642869,-13599.90186571,0.00020274,2]
[315279017,1708974642878,-500.0,0.00020281,2]
[315279018,1708974642887,-500.0,0.00020281,2]
[315279019,1708974642896,-500.0,0.00020281,2]
[315279020,1708974642906,-500.0,0.00020281,2]
[315279021,1708974642916,-500.0,0.00020281,2]
[315279022,1708974642926,-500.0,0.00020281,2]
[315279023,1708974642935,-500.0,0.00020281,2]
[315279024,1708974642944,-243.58118859,0.00020281,2]
[315279025,1708974642954,-500.0,0.00020281,2]
[315279026,1708974642964,-500.0,0.00020281,2]
[315279027,1708974642975,-256.44210122,0.00020281,2]
[315279028,1708974642985,-500.0,0.00020281,2]
[315279029,1708974642995,-31531.01589912,0.00020282,2]
[315279030,1708974643005,-5542.67083051,0.00020282,2]
[315279031,1708974643014,-2201.6792516,0.00020282,2]
[315279032,1708974643024,-519.96950981,0.00020282,2]
[315279033,1708974643033,-7564.39066603,0.00020282,2]
[315279034,1708974643047,-1000.0,0.00020282,2]
[315279035,1708974643056,-2599.35781466,0.00020282,2]
[315279036,1708974643065,-490.85679131,0.00020282,2]
[315279037,1708974643074,-1171.77537561,0.00020282,2]
[315279038,1708974643084,-428.76125455,0.00020424,2]
[315279039,1708974643093,-153.65780855,0.00020427,2]
[315279040,1708974643102,-300.0,0.00020454,2]
[315279041,1708974643111,-1212.58199328,0.00020477,2]
[315279042,1708974643121,-166.666666,0.00020524,2]
[315279043,1708974643130,-18636.215995,0.00020533,2]
[315279044,1708974643139,-839.58,0.00020538,3]
[315279045,1708974643148,-419.8,0.00020538,3]
[315279046,1708974643158,-500.0,0.00020547,2]
[315279047,1708974643167,-1739.24,0.00020547,2]
[315279048,1708974643177,-436.95590383,0.00020547,2]
[315279049,1708974643187,-500.0,0.00020547,2]
[315279050,1708974643197,-644.14,0.00020547,2]
[315279051,1708974643206,-794.61,0.00020547,2]
[315279052,1708974643216,-500.0,0.00020547,2]
[315279053,1708974643226,-500.0,0.00020547,2]
[315279054,1708974643236,-500.0,0.00020547,2]
[315279055,1708974643245,-500.0,0.00020547,2]
[315279056,1708974643255,-1775.87,0.00020547,2]
[315279057,1708974643264,-747.87,0.00020547,2]
[315279058,1708974643273,-840.97,0.00020547,2]
[315279059,1708974643283,-1212.5,0.00020547,2]
[315279060,1708974643295,-1260.34,0.00020547,2]
[315279061,1708974643304,-2584.76,0.00020547,2]
[315279062,1708974643314,-1040.02,0.00020547,2]
[315279063,1708974643323,-1514.46,0.00020547,2]
[315279064,1708974643332,-500.0,0.00020547,2]
[315279065,1708974643342,-1519.51,0.00020547,2]
[315279066,1708974643351,-1231.68,0.00020547,2]
[315279067,1708974643360,-500.0,0.00020547,2]
[315279068,1708974643370,-736.08,0.00020547,2]
[315279069,1708974643379,-515.69,0.00020547,2]
[315279070,1708974643388,-1064.65,0.00020547,2]
[315279071,1708974643397,-566.39,0.00020547,2]
[315279072,1708974643406,-11546.08,0.00020547,2]
[315279073,1708974643416,-11291.86,0.00020547,2]
[315279074,1708974643425,-848.65,0.00020547,2]
[315279075,1708974643435,-932.88,0.00020547,2]
[315279076,1708974643444,-700.43,0.00020547,2]
[315279077,1708974643454,-569.71,0.00020547,2]
[315279078,1708974643463,-5726.06,0.00020547,2]
[315279079,1708974643473,-500.0,0.00020547,2]
[315279080,1708974643482,-4969.98,0.00020547,2]
[315279081,1708974643491,-500.0,0.00020547,2]
[315279082,1708974643501,-633.71,0.00020547,2]
[315279083,1708974643510,-1013.29,0.00020547,2]
[315279084,1708974643519,-2035.13,0.00020547,2]
[315279085,1708974643528,-1252.63,0.00020547,2]
[315279086,1708974643538,-1000.0,0.00020555,2]
[315279087,1708974643550,-1000.0,0.00020615,2]
[315279088,1708974643559,-1000.0,0.00020619,2]
[315279089,1708974643572,-380.12472515,0.0002067,2]
[315279090,1708974643584,-1000.0,0.00020697,2]
[315279091,1708974643597,-1000.0,0.00020706,2]
[315279092,1708974643610,-1000.0,0.00020751,2]
[315279093,1708974643622,-1000.0,0.00020791,2]
[315279094,1708974643632,-5000.0,0.00020805,2]
[315279095,1708974643642,-500.0,0.00020821,2]
[315279096,1708974643654,-1739.24,0.00020821,2]
[315279097,1708974643669,-500.0,0.00020821,2]
[315279098,1708974643683,-644.14,0.00020821,2]
[315279099,1708974643695,-794.61,0.00020821,2]
[315279100,1708974643708,-253.68558529,0.00020821,2]
[315279101,1708974643721,-552.22584778,0.00020821,2]
[315279102,1708974643732,-500.0,0.00020821,2]
[315279103,1708974643745,-500.0,0.00020821,2]
[315279104,1708974643757,-1775.87,0.00020821,2]
[315279105,1708974643767,-747.87,0.00020821,2]
[315279106,1708974643777,-840.97,0.00020821,2]
[315279107,1708974643790,-1212.5,0.00020821,2]
[315279108,1708974643802,-1260.34,0.00020821,2]
[315279109,1708974643815,-2584.76,0.00020821,2]
[315279110,1708974643826,-1040.02,0.00020821,2]
[315279111,1708974643837,-1514.46,0.00020821,2]
[315279112,1708974643849,-500.0,0.00020821,2]
[315279113,1708974643860,-1519.51,0.00020821,2]
[315279114,1708974643873,-1231.68,0.00020821,2]
[315279115,1708974643885,-500.0,0.00020821,2]
[315279116,1708974643894,-736.08,0.00020821,2]
[315279117,1708974643905,-515.69,0.00020821,2]
[315279118,1708974643916,-1064.65,0.00020821,2]
[315279119,1708974643930,-566.39,0.00020821,2]
[315279120,1708974643942,-11546.08,0.00020821,2]
[315279121,1708974643953,-11291.86,0.00020821,2]
[315279122,1708974643966,-848.65,0.00020821,2]
[315279123,1708974643977,-932.88,0.00020821,2]
[315279124,1708974643989,-700.43,0.00020821,2]
[315279125,1708974643999,-569.71,0.00020821,2]
[315279126,1708974644011,-5726.06,0.00020821,2]
[315279127,1708974644023,-500.0,0.00020821,2]
[315279128,1708974644034,-4969.98,0.00020821,2]
[315279129,1708974644047,-500.0,0.00020821,2]
[315279130,1708974644058,-633.71,0.00020821,2]
[315279131,1708974644070,-1013.29,0.00020821,2]
[315279132,1708974644082,-2035.13,0.00020821,2]
[315279133,1708974644094,-1252.63,0.00020821,2]
[315279134,1708974644107,-428.76125455,0.00020873,2]
[315279135,1708974644119,-655.29226629,0.00020892,2]
[315279136,1708974644131,-500.0,0.00020899,2]
[315279137,1708974644141,-500.0,0.00020899,2]
[315279138,1708974644151,-500.0,0.00020899,2]
[315279139,1708974644161,-500.0,0.00020899,2]
[315279140,1708974644171,-500.0,0.00020899,2]
[315279141,1708974644182,-500.0,0.00020899,2]
[315279142,1708974644194,-500.0,0.00020899,2]
[315279143,1708974644205,-500.0,0.00020899,2]
[315279144,1708974644217,-500.0,0.00020899,2]
[315279145,1708974644227,-500.0,0.00020899,2]
[315279146,1708974644239,-500.0,0.00020899,2]
[315279147,1708974644251,-500.0,0.00020899,2]
[315279148,1708974644261,-500.0,0.00020899,2]
[315279149,1708974644272,-500.0,0.00020899,2]
[315279150,1708974644282,-500.0,0.00020899,2]
[315279151,1708974644296,-504.30152684,0.00020899,2]
[315279152,1708974644306,-271054.26506646,0.000209,2]
[315279153,1708974644317,-166.666666,0.00020973,2]
[315279154,1708974644328,-281.04469292,0.00020998,2]
[315279155,1708974644339,-160.0,0.00020999,2]
[315279156,1708974644350,-160.0,0.00020999,2]
[315279157,1708974644360,-160.0,0.00020999,2]
[315279158,1708974644370,-160.0,0.00020999,2]
[315279159,1708974644382,-179.43256387,0.00020999,2]
[315279160,1708974644393,-500.0,0.00020999,2]
[315279161,1708974644403,-500.0,0.00020999,2]
[315279162,1708974644414,-500.0,0.00020999,2]
[315279163,1708974644425,-500.0,0.00020999,2]
[315279164,1708974644436,-500.0,0.00020999,2]
[315279165,1708974644447,-500.0,0.00020999,2]
[315279166,1708974644458,-500.0,0.00020999,2]
[315279167,1708974644469,-500.0,0.00020999,2]
[315279168,1708974644479,-500.0,0.00020999,2]
[315279169,1708974644490,-399.333294,0.00020999,2]
[315279170,1708974644500,-643.59909627,0.00020999,2]
[315279171,1708974644511,-381441.36469126,0.00021,2]
[315279197,1708975466859,788.02,0.000155,2]
[315279217,1708975807483,172.80792212,0.000155,2]
[315279850,1708975838282,-301.33335363,0.00016568,2]
[315279851,1708975838292,-704.27292795,0.00016569,2]
[315279852,1708975838301,-159.80558045,0.0001657,2]
[315279853,1708975838310,-1862.69232421,0.00016571,2]
[315279854,1708975838319,-314.694044,0.00016575,2]
[315279855,1708975838327,-300.0,0.0001685,2]
[315279856,1708975838336,-19702.67493575,0.00016851,2]
[315279857,1708975838345,-2930.75984183,0.00016852,2]
[315279858,1708975838356,-24900.0,0.00016962,2]
[315279859,1708975838365,-303.5479402,0.00017006,2]
[315279860,1708975838374,-250.0,0.00017413,2]
[315279861,1708975838384,-2398.0926992,0.00017413,2]
[315279863,1708975838393,-160.1207913,0.0001747,2]
[315279865,1708975838403,-156.6342593,0.00018045,2]
[315279867,1708975838412,-290.0,0.00018407,2]
[315279869,1708975838421,-619.1446173,0.00018799,2]
[315279871,1708975838430,-155.06047358,0.000189,2]
[315279873,1708975838440,-4304.28932035,0.000189,2]
[315279875,1708975838449,-155.14583709,0.00019,2]
[315279877,1708975838459,-557.60219821,0.00019,2]
[315279879,1708975838469,-314.84,0.00019168,3]
[315279881,1708975838478,-262.37,0.00019168,3]
[315279883,1708975838487,-787.16,0.00019168,3]
[315279885,1708975838497,-222.64217164,0.00019176,2]
[315279887,1708975838505,-290.05288383,0.00019176,2]
[315279889,1708975838515,-428.88796945,0.00019176,2]
[315279891,1708975838524,-273.23870182,0.00019176,2]
[315279893,1708975838534,-275.35808168,0.00019176,2]
[315279895,1708975838543,-166.14213211,0.00019176,2]
[315279897,1708975838553,-626.17635466,0.00019176,2]
[315279899,1708975838562,-295.56467022,0.00019177,2]
[315279901,1708975838571,-538.0,0.00019177,2]
[315279903,1708975838580,-1213.2616781,0.00019177,2]
[315279905,1708975838589,-500.0,0.00019178,2]
[315279907,1708975838600,-500.0,0.00019178,2]
[315279908,1708975838609,-500.0,0.00019178,2]
[315279910,1708975838618,-500.0,0.00019178,2]
[315279912,1708975838627,-500.0,0.00019178,2]
[315279914,1708975838636,-457.65145341,0.00019178,2]
[315279916,1708975838645,-432.44409481,0.00019178,2]
[315279918,1708975838655,-501.80271902,0.00019178,2]
[315279920,1708975838664,-500.0,0.00019178,2]
[315279922,1708975838674,-500.0,0.00019178,2]
[315279924,1708975838683,-501.7897385,0.00019178,2]
[315279926,1708975838693,-500.0,0.00019178,2]
[315279928,1708975838703,-500.0,0.00019178,2]
[315279930,1708975838713,-502.27989563,0.00019178,2]
[315279932,1708975838722,-500.0,0.00019178,2]
[315279934,1708975838731,-500.0,0.00019178,2]
[315279936,1708975838741,-179.60062672,0.00019178,2]
[315279938,1708975838750,-500.0,0.00019178,2]
[315279940,1708975838760,-500.0,0.00019178,2]
[315279942,1708975838771,-225.58320984,0.00019178,2]
[315279944,1708975838780,-695.29,0.00019178,2]
[315279946,1708975838789,-500.0,0.00019178,2]
[315279948,1708975838798,-590.47,0.00019178,2]
[315279951,1708975838808,-500.0,0.00019178,2]
[315279953,1708975838817,-396.71082189,0.00019178,2]
[315279955,1708975838827,-500.0,0.00019178,2]
[315279956,1708975838836,-151.25262955,0.00019178,2]
[315279958,1708975838845,-545.98,0.00019178,2]
[315279961,1708975838856,-500.0,0.00019178,2]
[315279962,1708975838865,-500.0,0.00019178,2]
[315279964,1708975838875,-500.0,0.00019178,2]
[315279966,1708975838884,-500.0,0.00019178,2]
[315279968,1708975838893,-500.85128667,0.00019178,2]
[315279970,1708975838903,-500.0,0.00019178,2]
[315279972,1708975838913,-172.04761987,0.00019178,2]
[315279974,1708975838922,-500.0,0.00019178,2]
[315279977,1708975838935,-500.0,0.00019178,2]
[315279979,1708975838945,-500.0,0.00019178,2]
[315279981,1708975838955,-500.0,0.00019178,2]
[315279982,1708975838964,-500.0,0.00019178,2]
[315279985,1708975838973,-500.0,0.00019178,2]
[315279987,1708975838983,-500.0,0.00019178,2]
[315279989,1708975838992,-503.11301008,0.00019178,2]
[315279991,1708975839001,-500.0,0.00019178,2]
[315279993,1708975839016,-276.13419307,0.00019178,2]
[315279995,1708975839028,-500.0,0.00019178,2]
[315279997,1708975839038,-500.7936119,0.00019178,2]
[315279999,1708975839048,-500.0,0.00019178,2]
[315280001,1708975839059,-291.00212191,0.00019178,2]
[315280003,1708975839069,-500.0,0.00019178,2]
[315280005,1708975839080,-541.0,0.00019178,2]
[315280007,1708975839089,-500.0,0.00019178,2]
[315280009,1708975839100,-500.0,0.00019178,2]
[315280011,1708975839110,-500.0,0.00019178,2]
[315280013,1708975839119,-1739.59,0.00019178,2]
[315280015,1708975839129,-515.69,0.00019178,2]
[315280016,1708975839138,-500.0,0.00019178,2]
[315280018,1708975839149,-500.35866528,0.00019178,2]
[315280020,1708975839159,-285.47079158,0.00019178,2]
[315280023,1708975839168,-508.50299991,0.00019178,2]
[315280025,1708975839179,-500.0,0.00019178,2]
[315280026,1708975839189,-500.0,0.00019178,2]
[315280028,1708975839199,-500.0,0.00019178,2]
[315280031,1708975839209,-500.0,0.00019178,2]
[315280032,1708975839219,-415.96199715,0.00019178,2]
[315280034,1708975839230,-500.0,0.00019178,2]
[315280036,1708975839240,-500.0,0.00019178,2]
[315280038,1708975839251,-500.0,0.00019178,2]
[315280041,1708975839260,-500.0,0.00019178,2]
[315280042,1708975839270,-848.65,0.00019178,2]
[315280044,1708975839280,-1000.0,0.00019178,2]
[315280046,1708975839290,-500.0,0.00019178,2]
[315280048,1708975839300,-522.16106929,0.00019178,2]
[315280050,1708975839310,-500.0,0.00019178,2]
[315280052,1708975839319,-500.0,0.00019178,2]
[315280054,1708975839328,-500.0,0.00019178,2]
[315280056,1708975839337,-500.0,0.00019178,2]
[315280058,1708975839347,-500.0,0.00019178,2]
[315280060,1708975839361,-500.0,0.00019178,2]
[315280062,1708975839371,-500.0,0.00019178,2]
[315280064,1708975839381,-932.88,0.00019178,2]
[315280066,1708975839390,-500.0,0.00019178,2]
[315280068,1708975839400,-500.0,0.00019178,2]
[315280070,1708975839409,-500.0,0.00019178,2]
[315280072,1708975839419,-500.0,0.00019178,2]
[315280074,1708975839429,-500.0,0.00019178,2]
[315280076,1708975839438,-500.0,0.00019178,2]
[315280078,1708975839448,-500.0,0.00019178,2]
[315280080,1708975839458,-500.0,0.00019178,2]
[315280082,1708975839467,-500.0,0.00019178,2]
[315280084,1708975839477,-4969.98,0.00019178,2]
[315280086,1708975839487,-500.0,0.00019178,2]
[315280088,1708975839497,-500.0,0.00019178,2]
[315280090,1708975839507,-579.6253241,0.00019178,2]
[315280092,1708975839517,-500.0,0.00019178,2]
[315280094,1708975839527,-515.24992095,0.00019178,2]
[315280095,1708975839536,-5726.06,0.00019178,2]
[315280096,1708975839545,-500.0,0.00019178,2]
[315280097,1708975839557,-500.0,0.00019178,2]
[315280099,1708975839567,-500.0,0.00019178,2]
[315280100,1708975839576,-633.71,0.00019178,2]
[315280101,1708975839586,-503.20204968,0.00019178,2]
[315280102,1708975839596,-501.0634752,0.00019178,2]
[315280103,1708975839608,-358.25874374,0.00019178,2]
[315280104,1708975839618,-500.0,0.00019178,2]
[315280105,1708975839628,-500.44818436,0.00019178,2]
[315280106,1708975839639,-562.37040375,0.00019178,2]
[315280107,1708975839649,-500.0,0.00019178,2]
[315280108,1708975839663,-500.0,0.00019178,2]
[315280109,1708975839673,-500.0,0.00019178,2]
[315280110,1708975839683,-500.0,0.00019178,2]
[315280111,1708975839693,-1260.34,0.00019178,2]
[315280112,1708975839702,-500.0,0.00019178,2]
[315280113,1708975839712,-500.0,0.00019178,2]
[315280114,1708975839721,-500.0,0.00019178,2]
[315280115,1708975839730,-2035.13,0.00019178,2]
[315280116,1708975839739,-500.0,0.00019178,2]
[315280117,1708975839749,-501.52534223,0.00019178,2]
[315280118,1708975839758,-500.0,0.00019178,2]
[315280119,1708975839767,-500.0,0.00019178,2]
[315280120,1708975839777,-500.0,0.00019178,2]
[315280121,1708975839786,-500.0,0.00019178,2]
[315280122,1708975839796,-500.0,0.00019178,2]
[315280123,1708975839805,-230.32522058,0.00019178,2]
[315280124,1708975839816,-500.0,0.00019178,2]
[315280125,1708975839826,-500.0,0.00019178,2]
[315280126,1708975839836,-500.0,0.00019178,2]
[315280127,1708975839847,-500.0,0.00019178,2]
[315280128,1708975839860,-579.17,0.00019178,2]
[315280129,1708975839871,-2584.76,0.00019178,2]
[315280130,1708975839881,-500.0,0.00019178,2]
[315280131,1708975839891,-500.0,0.00019178,2]
[315280132,1708975839901,-1514.46,0.00019178,2]
[315280133,1708975839911,-1231.68,0.00019178,2]
[315280134,1708975839920,-1519.51,0.00019178,2]
[315280135,1708975839931,-11291.86,0.00019178,2]
[315280136,1708975839941,-1775.87,0.00019178,2]
[315280137,1708975839951,-418.40116223,0.00019178,2]
[315280138,1708975839961,-11546.08,0.00019178,2]
[315280139,1708975839970,-500.0,0.00019178,2]
[315280140,1708975839980,-747.87,0.00019178,2]
[315280141,1708975839990,-500.0,0.00019178,2]
[315280142,1708975839999,-500.0,0.00019178,2]
[315280143,1708975840010,-500.0,0.00019178,2]
[315280144,1708975840025,-500.0,0.00019178,2]
[315280145,1708975840035,-500.0,0.00019178,2]
[315280147,1708975840046,-500.31385956,0.00019178,2]
[315280149,1708975840056,-500.0,0.00019178,2]
[315280150,1708975840068,-1212.5,0.00019178,2]